[Event "Caplin Hastings Masters 2023-24"]
[Site "Hastings"]
[Date "2023.12.31"]
[Round "4.27"]
[White "Alcindor, Samuel"]
[Black "Lahlum, Hans Olav"]
[Result "1/2-1/2"]
[ECO "C00"]
[WhiteElo "1714"]
[BlackElo "2037"]
[Annotator "RC"]
[PlyCount "93"]
[EventDate "2023.12.18"]
[EventType "swiss"]
[EventCountry "ENG"]
[SourceTitle "playchess.com"]
[Source "ChessBase"]
[SourceQuality "1"]
[TimeControl "40/6000+30:3000+30"]

1. c4 {[%emt 0:00:14]} e6 {[%emt 0:00:03]} 2. e4 {[%emt 0:00:06]} d5 {[%emt 0:00:05]} 3. cxd5 {[%emt 0:00:06]} exd5 {[%emt 0:00:05]} 4. exd5 {[%emt 0:00:07]} Nf6 {[%emt 0:00:11]} 5. Bb5+ {[%emt 0:00:06]} Nbd7 {[%emt 0:00:09]} 6. Nc3 {[%emt 0:00:07]} Be7 {[%emt 0:00:36]} 7. Nf3 {[%emt 0:02:49]} O-O {[%emt 0:00:14]} 8. d4 {[%emt 0:00:56]} Nb6 {[%emt 0:00:27]} 9. O-O {[%emt 0:01:13]} Nbxd5 {[%emt 0:02:22]} 10. Re1 {[%emt 0:01:22]} c6 {[%emt 0:01:04]} 11. Bc4 {[%emt 0:06:03]} Bg4 {[%emt 0:11:36]} 12. h3 {[%emt 0:06:40]} Bh5 {[%emt 0:03:50]} 13. Bg5 {[%emt 0:02:52]} Nb6 {[%emt 0:07:34]} 14. Bb3 {[%emt 0:02:35]} Re8 {[%emt 0:12:43]} 15. g4 {[%emt 0:12:50]} Bg6 {[%emt 0:00:14]} 16. Ne5 {[%emt 0:00:17]} Nfd5 {[%emt 0:04:24]} 17. Bxe7 {[%emt 0:06:50]} Rxe7 {[%emt 0:00:44]} 18. Qf3 {[%emt 0:04:11]} Re6 {[%emt 0:06:04]} 19. Nxg6 {[%emt 0:21:06]} Rxg6 {[%emt 0:01:26]} 20. Nxd5 {[%emt 0:00:13]} cxd5 {[%emt 0:03:26]} 21. Rac1 {[%emt 0:03:37]} h5 {[%emt 0:03:19]} 22. Bc2 {[%emt 0:11:03]} hxg4 {[%emt 0:01:05]} 23. hxg4 {[%emt 0:00:17]} Rh6 {[%emt 0:03:30]} 24. Kg2 {[%emt 0:01:06]} Rc8 {[%emt 0:05:19]} 25. Bd3 {[%emt 0:04:50]} Rcc6 {[%emt 0:16:31]} 26. Bb5 {[%emt 0:04:13]} Rxc1 {[%emt 0:05:22]} 27. Rxc1 {[%emt 0:00:02]} Re6 {[%emt 0:00:54]} 28. Rh1 {[%emt 0:02:38]} Qg5 {[%emt 0:01:26]} 29. Rh5 {[%emt 0:02:27]} Qe7 {[%emt 0:06:37]} 30. Qh3 {[%emt 0:03:41]} Rh6 {[%emt 0:01:10]} 31. Rxh6 {[%emt 0:00:42]} gxh6 {[%emt 0:00:04]} 32. Bd3 {[%emt 0:01:49]} Kg7 {[%emt 0:00:38]} 33. Qf3 {[%emt 0:00:42]} Qe6 {[%emt 0:02:48]} 34. b3 {[%emt 0:01:13]} Qf6 {[%emt 0:03:45]} 35. Qxf6+ {[%emt 0:00:16]} Kxf6 {[%emt 0:00:03]} 36. Kg3 {[%emt 0:00:18]} Nc8 {[%emt 0:00:49]} 37. Kh4 {[%emt 0:02:06]} Ne7 {[%emt 0:00:38]} 38. Kh5 {[%emt 0:00:12]} Kg7 {[%emt 0:02:10]} 39. Be2 {[%emt 0:06:13]} Nc6 {[%emt 0:05:02]} 40. Bf3 {[%emt 0:00:29]} Nxd4 {[%emt 0:01:01]} 41. Bxd5 {[%emt 0:50:10]} b5 {[%emt 0:50:34]} 42. a3 {[%emt 0:00:00]} a5 {[%emt 0:00:00]} 43. g5 {[%emt 0:00:00]} hxg5 {[%emt 0:00:00]} 44. Kxg5 {[%emt 0:00:00]} a4 {[%emt 0:00:00]} 45. bxa4 {[%emt 0:00:00]} bxa4 {[%emt 0:00:00]} 46. Be4 {[%emt 0:07:16]} f6+ {[%emt 0:00:07]} 47. Kf4 {[%emt 0:00:01]} 1/2-1/2

[Event "Caplin Hastings Masters 2023-24"]
[Site "Hastings"]
[Date "2023.12.31"]
[Round "4.28"]
[White "Nainika, Gupta"]
[Black "Hng, Mei-Xian Eunice"]
[Result "0-1"]
[ECO "B22"]
[WhiteElo "1543"]
[BlackElo "2014"]
[Annotator "NA RC"]
[PlyCount "40"]
[EventDate "2023.12.18"]
[EventType "swiss"]
[EventCountry "ENG"]
[SourceTitle "playchess.com"]
[Source "ChessBase"]
[SourceQuality "1"]
[TimeControl "40/6000+30:3000+30"]

1. e4 {[%emt 0:00:33]} c5 {[%emt 0:02:33]} 2. d4 {[%emt 0:02:23]} cxd4 {[%emt 0:00:17]} 3. c3 {[%emt 0:00:33]} Nf6 {[%emt 0:00:55]} 4. e5 {[%emt 0:01:32]} Nd5 {[%emt 0:00:46]} 5. Qxd4 {[%emt 0:01:04]} e6 {[%emt 0:01:24]} 6. Bd3 {[%emt 0:02:44]} Qc7 {[%emt 0:07:30]} 7. f4 {[%emt 0:14:11]} Nc6 {[%emt 0:08:25]} 8. Qe4 {[%emt 0:01:29]} g5 {[%emt 0:08:41]} 9. fxg5 {[%emt 0:09:48]} Nxe5 {[%emt 0:00:26]} 10. Be2 {[%emt 0:01:35]} b5 {[%emt 0:10:43]} 11. Bxb5 {[%emt 0:02:21]} Bd6 {[%emt 0:00:27]} 12. Nf3 {[%emt 0:01:37]} Nxf3+ {[%emt 0:01:29]} 13. Qxf3 {[%emt 0:00:49]} Bb7 {[%emt 0:01:23]} 14. Rf1 {[%emt 0:01:19]} Rf8 {[%emt 0:01:50]} 15. Qh3 {[%emt 0:01:07]} Bxh2 {[%emt 0:00:46]} 16. Qxh7 {[%emt 0:00:37]} a6 {[%emt 0:01:27]} 17. Ba4 {[%emt 0:00:49]} Qg3+ {[%emt 0:00:34]} 18. Kd1 {[%emt 0:00:39]} Qg4+ {[%emt 0:00:15]} 19. Rf3 {[%emt 0:00:57]} Qxa4+ {[%emt 0:00:41]} 20. b3 {[%emt 0:00:39]} Nxc3+ {[%emt 0:01:02]} 0-1

[Event "Caplin Hastings Masters 2023-24"]
[Site "Hastings"]
[Date "2023.12.31"]
[Round "4.29"]
[White "Kovalskyi, Roman"]
[Black "Vasiliadis, Theodoros"]
[Result "0-1"]
[ECO "B33"]
[WhiteElo "2009"]
[BlackElo "1845"]
[Annotator "RC"]
[PlyCount "82"]
[EventDate "2023.12.18"]
[EventType "swiss"]
[EventCountry "ENG"]
[SourceTitle "playchess.com"]
[Source "ChessBase"]
[SourceQuality "1"]
[TimeControl "40/6000+30:3000+30"]

1. e4 {[%emt 0:07:10]} c5 {[%emt 0:00:15]} 2. Nf3 {[%emt 0:00:06]} Nc6 {[%emt 0:00:05]} 3. d4 {[%emt 0:00:04]} cxd4 {[%emt 0:00:04]} 4. Nxd4 {[%emt 0:00:04]} Nf6 {[%emt 0:00:05]} 5. Nc3 {[%emt 0:00:08]} e5 {[%emt 0:00:06]} 6. Ndb5 {[%emt 0:00:19]} d6 {[%emt 0:00:07]} 7. Nd5 {[%emt 0:00:07]} Nxd5 {[%emt 0:00:44]} 8. exd5 {[%emt 0:00:06]} Ne7 {[%emt 0:00:59]} 9. c4 {[%emt 0:00:09]} Nf5 {[%emt 0:05:40]} 10. Bd3 {[%emt 0:01:15]} Be7 {[%emt 0:08:44]} 11. O-O {[%emt 0:01:44]} O-O {[%emt 0:02:05]} 12. b3 {[%emt 0:06:21]} a6 {[%emt 0:14:22]} 13. Nc3 {[%emt 0:00:16]} Nd4 {[%emt 0:10:32]} 14. Be3 {[%emt 0:22:27]} f5 {[%emt 0:03:01]} 15. f4 {[%emt 0:31:06]} Bd7 {[%emt 0:03:44]} 16. Qd2 {[%emt 0:13:29]} Rc8 {[%emt 0:02:32]} 17. Rad1 {[%emt 0:02:03]} Qe8 {[%emt 0:15:21]} 18. Rfe1 {[%emt 0:06:22]} Qf7 {[%emt 0:05:58]} 19. Bf1 {[%emt 0:04:22]} Bh4 {[%emt 0:02:00]} 20. Bf2 {[%emt 0:01:44]} Bf6 {[%emt 0:13:12]} 21. Bxd4 {[%emt 0:01:34]} exd4 {[%emt 0:00:07]} 22. Ne2 {[%emt 0:00:04]} Rfe8 {[%emt 0:04:19]} 23. Nxd4 {[%emt 0:00:25]} Re4 {[%emt 0:03:53]} 24. Nf3 {[%emt 0:02:20]} Bd8 {[%emt 0:04:27]} 25. Bd3 {[%emt 0:01:11]} Bb6+ {[%emt 0:00:11]} 26. Kf1 {[%emt 0:01:01]} Rce8 {[%emt 0:04:03]} 27. Bxe4 {[%emt 0:07:15]} fxe4 {[%emt 0:00:14]} 28. Ng5 {[%emt 0:00:05]} Qh5 {[%emt 0:05:18]} 29. h3 {[%emt 0:00:58]} Bg4 {[%emt 0:01:41]} 30. Ne6 {[%emt 0:00:35]} e3 {[%emt 0:00:59]} 31. Qb2 {[%emt 0:00:04]} Rxe6 {[%emt 0:00:35]} 32. dxe6 {[%emt 0:00:02]} Bxd1 {[%emt 0:00:22]} 33. a3 {[%emt 0:01:33]} e2+ {[%emt 0:00:34]} 34. Rxe2 {[%emt 0:00:06]} Qc5 {[%emt 0:00:35]} 35. Ke1 {[%emt 0:00:52]} Qg1+ {[%emt 0:00:09]} 36. Kd2 {[%emt 0:00:03]} Bxe2 {[%emt 0:00:12]} 37. e7 {[%emt 0:00:03]} Qe3+ {[%emt 0:00:12]} 38. Ke1 {[%emt 0:00:12]} Bxc4+ {[%emt 0:00:16]} 39. Kd1 {[%emt 0:00:03]} Bxb3+ {[%emt 0:00:08]} 40. Qxb3+ {[%emt 0:00:07]} Qxb3+ {[%emt 0:00:04]} 41. Kd2 {[%emt 0:50:06]} Kf7 {[%emt 0:50:07]} 0-1

[Event "Caplin Hastings Masters 2023-24"]
[Site "Hastings"]
[Date "2023.12.31"]
[Round "4.30"]
[White "Ismail, Mohammed Aayan"]
[Black "Blades, Kit"]
[Result "1/2-1/2"]
[ECO "E05"]
[WhiteElo "2115"]
[BlackElo "1771"]
[Annotator "RC"]
[PlyCount "124"]
[EventDate "2023.12.18"]
[EventType "swiss"]
[EventCountry "ENG"]
[SourceTitle "playchess.com"]
[Source "ChessBase"]
[SourceQuality "1"]
[TimeControl "40/6000+30:3000+30"]

1. c4 {[%emt 0:00:06]} e6 {[%emt 0:00:24]} 2. g3 {[%emt 0:00:19]} Nf6 {[%emt 0:00:10]} 3. Bg2 {[%emt 0:00:06]} d5 {[%emt 0:00:06]} 4. d4 {[%emt 0:00:12]} Be7 {[%emt 0:00:05]} 5. Nf3 {[%emt 0:00:13]} O-O {[%emt 0:00:09]} 6. O-O {[%emt 0:00:03]} dxc4 {[%emt 0:00:09]} 7. Qa4 {[%emt 0:00:36]} a6 {[%emt 0:00:11]} 8. Qxc4 {[%emt 0:00:11]} b5 {[%emt 0:00:07]} 9. Qc2 {[%emt 0:00:07]} Bb7 {[%emt 0:00:04]} 10. Nbd2 {[%emt 0:04:46]} Nbd7 {[%emt 0:06:43]} 11. b3 {[%emt 0:07:38]} c5 {[%emt 0:09:40]} 12. a4 {[%emt 0:06:27]} Qb6 {[%emt 0:06:01]} 13. Ba3 {[%emt 0:05:26]} Rac8 {[%emt 0:04:05]} 14. Qd3 {[%emt 0:00:26]} Rfe8 {[%emt 0:03:35]} 15. Rfc1 {[%emt 0:06:16]} Bf8 {[%emt 0:05:32]} 16. a5 {[%emt 0:08:48]} Qa7 {[%emt 0:05:35]} 17. Bb2 {[%emt 0:03:43]} Red8 {[%emt 0:05:01]} 18. e3 {[%emt 0:05:50]} Qa8 {[%emt 0:11:29]} 19. Qe2 {[%emt 0:09:23]} cxd4 {[%emt 0:05:19]} 20. exd4 {[%emt 0:02:35]} Bb4 {[%emt 0:01:19]} 21. Rxc8 {[%emt 0:01:21]} Rxc8 {[%emt 0:00:12]} 22. Nf1 {[%emt 0:01:08]} Be4 {[%emt 0:06:34]} 23. Ne3 {[%emt 0:04:54]} Bc3 {[%emt 0:05:45]} 24. Ne1 {[%emt 0:06:10]} Bxg2 {[%emt 0:09:25]} 25. N1xg2 {[%emt 0:02:41]} Bxb2 {[%emt 0:00:04]} 26. Qxb2 {[%emt 0:00:05]} Qc6 {[%emt 0:00:49]} 27. Rd1 {[%emt 0:04:50]} Qc3 {[%emt 0:00:50]} 28. Qa3 {[%emt 0:00:36]} h5 {[%emt 0:02:33]} 29. h4 {[%emt 0:01:19]} Ne4 {[%emt 0:01:15]} 30. d5 {[%emt 0:06:44]} Ne5 {[%emt 0:02:41]} 31. Qa2 {[%emt 0:01:32]} Nf3+ {[%emt 0:00:56]} 32. Kh1 {[%emt 0:01:40]} Qc2 {[%emt 0:01:05]} 33. Qxc2 {[%emt 0:00:29]} Rxc2 {[%emt 0:00:04]} 34. Ne1 {[%emt 0:01:17]} Rxf2 {[%emt 0:04:09]} 35. Nxf3 {[%emt 0:00:38]} Rxf3 {[%emt 0:00:18]} 36. Re1 {[%emt 0:07:33]} Rxg3 {[%emt 0:01:58]} 37. Kh2 {[%emt 0:01:48]} Rg6 {[%emt 0:01:08]} 38. Rd1 {[%emt 0:00:56]} exd5 {[%emt 0:01:03]} 39. Rxd5 {[%emt 0:01:48]} Nf2 {[%emt 0:01:13]} 40. Nf5 {[%emt 0:00:59]} Ng4+ {[%emt 0:04:03]} 41. Kh3 {[%emt 0:51:47]} Re6 {[%emt 0:50:12]} 42. Rd8+ {[%emt 0:01:29]} Kh7 {[%emt 0:00:18]} 43. Rd6 {[%emt 0:00:00]} Nf2+ {[%emt 0:00:00]} 44. Kg2 {[%emt 0:00:00]} Ne4 {[%emt 0:00:00]} 45. Rb6 {[%emt 0:00:00]} Nc5 {[%emt 0:00:00]} 46. Nd4 {[%emt 0:00:00]} Re3 {[%emt 0:00:00]} 47. b4 {[%emt 0:00:00]} Ne6 {[%emt 0:00:00]} 48. Nc6 {[%emt 0:00:00]} Nc7 {[%emt 0:00:00]} 49. Rb7 {[%emt 0:00:00]} Nd5 {[%emt 0:00:00]} 50. Rd7 {[%emt 0:00:00]} Re6 {[%emt 0:00:00]} 51. Nd8 {[%emt 0:00:00]} Rg6+ {[%emt 0:00:00]} 52. Kf3 {[%emt 0:00:00]} Nxb4 {[%emt 0:00:00]} 53. Nxf7 {[%emt 0:00:00]} Rf6+ {[%emt 0:00:00]} 54. Ke4 {[%emt 0:00:00]} Nc6 {[%emt 0:00:00]} 55. Ng5+ {[%emt 0:00:00]} Kg6 {[%emt 0:00:00]} 56. Kd5 {[%emt 0:00:00]} Nxa5 {[%emt 0:00:00]} 57. Ne6 {[%emt 0:00:00]} Kf5 {[%emt 0:00:00]} 58. Nxg7+ {[%emt 0:00:00]} Kg4 {[%emt 0:00:00]} 59. Ke5 {[%emt 0:00:00]} Rf1 {[%emt 0:00:00]} 60. Rd4+ {[%emt 0:00:00]} Kh3 {[%emt 0:00:00]} 61. Rd3+ {[%emt 0:00:00]} Kg4 {[%emt 0:00:00]} 62. Rd4+ {[%emt 0:00:00]} Kh3 {[%emt 0:00:00]} 1/2-1/2

[Event "Caplin Hastings Masters 2023-24"]
[Site "Hastings"]
[Date "2023.12.31"]
[Round "4.31"]
[White "Suez-Panama, Gilles"]
[Black "Walker, Martin G"]
[Result "1-0"]
[ECO "D85"]
[WhiteElo "1868"]
[BlackElo "2090"]
[Annotator "NA RC"]
[PlyCount "45"]
[EventDate "2023.12.18"]
[EventType "swiss"]
[EventCountry "ENG"]
[SourceTitle "playchess.com"]
[Source "ChessBase"]
[SourceQuality "1"]
[TimeControl "40/6000+30:3000+30"]

1. d4 {[%emt 0:00:06]} Nf6 {[%emt 0:00:06]} 2. Nf3 {[%emt 0:00:04]} g6 {[%emt 0:00:05]} 3. c4 {[%emt 0:00:11]} Bg7 {[%emt 0:00:05]} 4. Nc3 {[%emt 0:00:06]} d5 {[%emt 0:00:04]} 5. cxd5 {[%emt 0:01:27]} Nxd5 {[%emt 0:00:05]} 6. e4 {[%emt 0:00:10]} Nxc3 {[%emt 0:00:06]} 7. bxc3 {[%emt 0:00:03]} c5 {[%emt 0:00:07]} 8. Rb1 {[%emt 0:00:18]} O-O {[%emt 0:00:14]} 9. Be2 {[%emt 0:00:05]} cxd4 {[%emt 0:03:10]} 10. cxd4 {[%emt 0:00:07]} Qa5+ {[%emt 0:00:04]} 11. Bd2 {[%emt 0:00:33]} Qxa2 {[%emt 0:00:06]} 12. O-O {[%emt 0:00:21]} Bg4 {[%emt 0:05:26]} 13. Be3 {[%emt 0:01:36]} Nc6 {[%emt 0:05:26]} 14. d5 {[%emt 0:03:08]} Ne5 {[%emt 0:00:06]} 15. Rxb7 {[%emt 0:00:33]} e6 {[%emt 0:11:49]} 16. Re1 {[%emt 0:24:11]} Bxf3 {[%emt 0:00:07]} 17. gxf3 {[%emt 0:01:37]} exd5 {[%emt 0:17:24]} 18. f4 {[%emt 0:06:13]} Nc6 {[%emt 0:19:24]} 19. exd5 {[%emt 0:06:06]} Rfd8 {[%emt 0:04:53]} 20. Bf3 {[%emt 0:03:39]} Na5 {[%emt 0:09:54]} 21. Rc7 {[%emt 0:13:04]} Nc4 {[%emt 0:03:43]} 22. d6 {[%emt 0:10:29]} Rab8 {[%emt 0:19:08]} 23. Qd5 {[%emt 0:02:41]} 1-0

[Event "Caplin Hastings Masters 2023-24"]
[Site "Hastings"]
[Date "2023.12.31"]
[Round "4.32"]
[White "Gimenez Menchon, Cesar"]
[Black "Ortiz Sanchez, Luis"]
[Result "1-0"]
[ECO "B22"]
[WhiteElo "2088"]
[BlackElo "1863"]
[Annotator "RC"]
[PlyCount "199"]
[EventDate "2023.12.18"]
[EventType "swiss"]
[EventCountry "ENG"]
[SourceTitle "playchess.com"]
[Source "ChessBase"]
[SourceQuality "1"]
[TimeControl "40/6000+30:3000+30"]

1. e4 {[%emt 0:00:58]} c5 {[%emt 0:00:23]} 2. c3 {[%emt 0:00:25]} Nf6 {[%emt 0:00:32]} 3. e5 {[%emt 0:00:06]} Nd5 {[%emt 0:00:30]} 4. Nf3 {[%emt 0:00:08]} d6 {[%emt 0:01:04]} 5. Bb5+ {[%emt 0:00:10]} Bd7 {[%emt 0:01:25]} 6. Bc4 {[%emt 0:00:08]} e6 {[%emt 0:00:50]} 7. d4 {[%emt 0:00:29]} Bc6 {[%emt 0:01:37]} 8. O-O {[%emt 0:03:48]} Nd7 {[%emt 0:00:34]} 9. Bb3 {[%emt 0:01:28]} cxd4 {[%emt 0:00:46]} 10. exd6 {[%emt 0:12:15]} d3 {[%emt 0:01:01]} 11. Bxd5 {[%emt 0:18:39]} Bxd5 {[%emt 0:01:16]} 12. Bf4 {[%emt 0:00:59]} Nb6 {[%emt 0:13:30]} 13. Na3 {[%emt 0:07:21]} Bxd6 {[%emt 0:04:40]} 14. Bxd6 {[%emt 0:00:13]} Qxd6 {[%emt 0:00:49]} 15. Qxd3 {[%emt 0:00:09]} Qf4 {[%emt 0:01:40]} 16. Qd4 {[%emt 0:06:29]} Qxd4 {[%emt 0:02:24]} 17. Nxd4 {[%emt 0:00:08]} O-O-O {[%emt 0:03:29]} 18. Rfe1 {[%emt 0:05:12]} Rhe8 {[%emt 0:05:25]} 19. f4 {[%emt 0:00:53]} Nc4 {[%emt 0:01:50]} 20. Nxc4 {[%emt 0:02:03]} Bxc4 {[%emt 0:00:08]} 21. Re5 {[%emt 0:00:33]} Rd5 {[%emt 0:01:19]} 22. Rae1 {[%emt 0:12:10]} Red8 {[%emt 0:06:37]} 23. a4 {[%emt 0:05:12]} Rxe5 {[%emt 0:04:35]} 24. Rxe5 {[%emt 0:00:09]} Rd5 {[%emt 0:00:11]} 25. Rxd5 {[%emt 0:04:33]} Bxd5 {[%emt 0:00:15]} 26. Nb5 {[%emt 0:00:46]} Kd7 {[%emt 0:01:40]} 27. Nxa7 {[%emt 0:02:53]} Bb3 {[%emt 0:01:00]} 28. a5 {[%emt 0:06:33]} Bc4 {[%emt 0:00:44]} 29. b4 {[%emt 0:00:08]} Kc7 {[%emt 0:02:09]} 30. b5 {[%emt 0:00:07]} f6 {[%emt 0:01:49]} 31. Kf2 {[%emt 0:04:24]} Kd6 {[%emt 0:00:34]} 32. Ke3 {[%emt 0:01:10]} Kc5 {[%emt 0:00:34]} 33. b6 {[%emt 0:00:22]} Bd5 {[%emt 0:02:15]} 34. g3 {[%emt 0:01:04]} Bg2 {[%emt 0:00:49]} 35. Nc8 {[%emt 0:04:42]} Bh1 {[%emt 0:02:02]} 36. Kd3 {[%emt 0:03:40]} Bg2 {[%emt 0:01:57]} 37. h4 {[%emt 0:02:25]} h6 {[%emt 0:00:56]} 38. Na7 {[%emt 0:02:54]} Bf1+ {[%emt 0:00:58]} 39. Ke3 {[%emt 0:00:40]} Bg2 {[%emt 0:00:56]} 40. Nc8 {[%emt 0:00:55]} Bh1 {[%emt 0:01:29]} 41. Kd3 {[%emt 0:52:13]} Bg2 {[%emt 0:52:54]} 42. Ne7 {[%emt 0:00:31]} Bf1+ {[%emt 0:02:54]} 43. Ke3 {[%emt 0:00:21]} Bg2 {[%emt 0:10:26]} 44. g4 {[%emt 0:00:00]} Bh3 {[%emt 0:00:00]} 45. Kf3 {[%emt 0:00:00]} Kb5 {[%emt 0:00:00]} 46. f5 {[%emt 0:00:00]} exf5 {[%emt 0:00:00]} 47. Nxf5 {[%emt 0:00:00]} h5 {[%emt 0:00:00]} 48. Nd4+ {[%emt 0:00:00]} Kxa5 {[%emt 0:00:00]} 49. gxh5 {[%emt 0:00:00]} Kxb6 {[%emt 0:00:00]} 50. Kf4 {[%emt 0:00:00]} Kc5 {[%emt 0:00:00]} 51. Nf5 {[%emt 0:00:00]} Bxf5 {[%emt 0:00:00]} 52. Kxf5 {[%emt 0:00:00]} Kc4 {[%emt 0:00:00]} 53. Kg6 {[%emt 0:00:00]} f5 {[%emt 0:00:00]} 54. Kxf5 {[%emt 0:00:00]} Kxc3 {[%emt 0:00:00]} 55. Kg6 {[%emt 0:00:00]} b5 {[%emt 0:00:00]} 56. Kxg7 {[%emt 0:00:00]} b4 {[%emt 0:00:00]} 57. h6 {[%emt 0:00:00]} b3 {[%emt 0:00:00]} 58. h7 {[%emt 0:00:00]} b2 {[%emt 0:00:00]} 59. h8=Q {[%emt 0:00:00]} b1=Q {[%emt 0:00:00]} 60. Qc8+ {[%emt 0:00:00]} Kd2 {[%emt 0:00:00]} 61. Qd7+ {[%emt 0:00:00]} Ke3 {[%emt 0:00:00]} 62. Qe6+ {[%emt 0:00:00]} Kf4 {[%emt 0:00:00]} 63. h5 {[%emt 0:00:00]} Qb7+ {[%emt 0:00:00]} 64. Kh6 {[%emt 0:00:00]} Qb8 {[%emt 0:00:00]} 65. Qf6+ {[%emt 0:00:29]} Ke4 {[%emt 0:00:00]} 66. Kh7 {[%emt 0:01:12]} Ke3 {[%emt 0:00:00]} 67. h6 {[%emt 0:00:30]} Ke2 {[%emt 0:00:54]} 68. Kg7 {[%emt 0:01:05]} Kd1 {[%emt 0:01:00]} 69. h7 {[%emt 0:01:41]} Qc7+ {[%emt 0:00:52]} 70. Kg8 {[%emt 0:00:43]} Qc8+ {[%emt 0:01:34]} 71. Kf7 {[%emt 0:00:29]} Qd7+ {[%emt 0:01:51]} 72. Qe7 {[%emt 0:01:10]} Qf5+ {[%emt 0:00:21]} 73. Ke8 {[%emt 0:00:06]} Qh5+ {[%emt 0:00:55]} 74. Kd8 {[%emt 0:00:30]} Qa5+ {[%emt 0:00:22]} 75. Kc8 {[%emt 0:00:50]} Qa8+ {[%emt 0:01:12]} 76. Kd7 {[%emt 0:00:32]} Qa4+ {[%emt 0:01:01]} 77. Kd8 {[%emt 0:01:34]} Qa8+ {[%emt 0:00:13]} 78. Kc7 {[%emt 0:00:12]} Qa7+ {[%emt 0:00:26]} 79. Kd6 {[%emt 0:00:07]} Qb6+ {[%emt 0:01:02]} 80. Ke5 {[%emt 0:01:02]} Qe3+ {[%emt 0:00:42]} 81. Kf6 {[%emt 0:00:06]} Qh6+ {[%emt 0:00:18]} 82. Kf5 {[%emt 0:00:29]} Qh5+ {[%emt 0:00:46]} 83. Ke6 {[%emt 0:00:07]} Qg4+ {[%emt 0:00:57]} 84. Kf7 {[%emt 0:00:22]} Qf5+ {[%emt 0:00:34]} 85. Kg7 {[%emt 0:01:39]} Qg4+ {[%emt 0:00:21]} 86. Kf8 {[%emt 0:00:18]} Qf5+ {[%emt 0:00:19]} 87. Ke8 {[%emt 0:00:24]} Qh5+ {[%emt 0:00:25]} 88. Kd8 {[%emt 0:00:42]} Qa5+ {[%emt 0:00:07]} 89. Qc7 {[%emt 0:00:18]} Qa8+ {[%emt 0:01:51]} 90. Kd7 {[%emt 0:00:15]} Qa4+ {[%emt 0:00:17]} 91. Kd6 {[%emt 0:02:20]} Qd4+ {[%emt 0:02:12]} 92. Kc6 {[%emt 0:00:41]} Qc4+ {[%emt 0:01:59]} 93. Kb7 {[%emt 0:01:07]} Qb5+ {[%emt 0:01:26]} 94. Kc8 {[%emt 0:00:14]} Qa6+ {[%emt 0:00:39]} 95. Kd7 {[%emt 0:01:38]} Qb5+ {[%emt 0:01:37]} 96. Kd8 {[%emt 0:00:12]} Qg5+ {[%emt 0:00:39]} 97. Kc8 {[%emt 0:00:07]} Qg2 {[%emt 0:02:40]} 98. Qd6+ {[%emt 0:00:52]} Kc2 {[%emt 0:00:34]} 99. h8=Q {[%emt 0:01:04]} Qa8+ {[%emt 0:00:15]} 100. Qb8 {[%emt 0:00:05]} 1-0

[Event "Caplin Hastings Masters 2023-24"]
[Site "Hastings"]
[Date "2023.12.31"]
[Round "4.33"]
[White "Rayner, Francis"]
[Black "Boggarapu, Kritan"]
[Result "1-0"]
[ECO "D43"]
[WhiteElo "2035"]
[BlackElo "1857"]
[Annotator "RC"]
[PlyCount "147"]
[EventDate "2023.12.18"]
[EventType "swiss"]
[EventCountry "ENG"]
[SourceTitle "playchess.com"]
[Source "ChessBase"]
[SourceQuality "1"]
[TimeControl "40/6000+30:3000+30"]

1. c4 {[%emt 0:00:22]} c6 {[%emt 0:00:11]} 2. Nf3 {[%emt 0:01:37]} d5 {[%emt 0:00:23]} 3. d4 {[%emt 0:01:00]} Nf6 {[%emt 0:00:23]} 4. Nc3 {[%emt 0:02:26]} e6 {[%emt 0:00:30]} 5. Bg5 {[%emt 0:02:08]} h6 {[%emt 0:03:41]} 6. Bxf6 {[%emt 0:03:46]} Qxf6 {[%emt 0:00:08]} 7. e3 {[%emt 0:00:21]} Nd7 {[%emt 0:04:47]} 8. Bd3 {[%emt 0:01:14]} dxc4 {[%emt 0:01:40]} 9. Bxc4 {[%emt 0:00:17]} b5 {[%emt 0:00:31]} 10. Bd3 {[%emt 0:01:49]} Bb7 {[%emt 0:03:51]} 11. O-O {[%emt 0:01:13]} Rc8 {[%emt 0:04:24]} 12. Rc1 {[%emt 0:05:06]} a6 {[%emt 0:02:08]} 13. Ne4 {[%emt 0:06:17]} Qd8 {[%emt 0:00:25]} 14. a4 {[%emt 0:08:33]} Be7 {[%emt 0:20:39]} 15. Qd2 {[%emt 0:12:09]} O-O {[%emt 0:05:03]} 16. Nc5 {[%emt 0:03:46]} Nxc5 {[%emt 0:18:36]} 17. dxc5 {[%emt 0:00:06]} Bf6 {[%emt 0:02:26]} 18. Rfd1 {[%emt 0:01:21]} Qc7 {[%emt 0:02:08]} 19. a5 {[%emt 0:03:39]} Rcd8 {[%emt 0:02:26]} 20. b4 {[%emt 0:00:46]} Bc8 {[%emt 0:01:06]} 21. Qc2 {[%emt 0:03:59]} g6 {[%emt 0:03:46]} 22. Rd2 {[%emt 0:07:43]} Bg7 {[%emt 0:05:01]} 23. Rcd1 {[%emt 0:05:05]} f5 {[%emt 0:11:52]} 24. e4 {[%emt 0:01:31]} Bf6 {[%emt 0:01:40]} 25. Re1 {[%emt 0:02:37]} Kh8 {[%emt 0:03:34]} 26. e5 {[%emt 0:02:34]} Bg7 {[%emt 0:00:11]} 27. Qc3 {[%emt 0:02:40]} Rd5 {[%emt 0:01:19]} 28. Bc2 {[%emt 0:04:41]} Rxd2 {[%emt 0:04:02]} 29. Nxd2 {[%emt 0:01:42]} Rd8 {[%emt 0:01:22]} 30. Nf3 {[%emt 0:02:54]} g5 {[%emt 0:02:40]} 31. h3 {[%emt 0:01:26]} Qe7 {[%emt 0:02:52]} 32. g3 {[%emt 0:05:02]} Rd7 {[%emt 0:01:14]} 33. Nd4 {[%emt 0:02:08]} Rc7 {[%emt 0:00:09]} 34. Bb3 {[%emt 0:01:04]} Bd7 {[%emt 0:00:37]} 35. Qe3 {[%emt 0:02:07]} Rc8 {[%emt 0:00:45]} 36. Kh2 {[%emt 0:02:48]} Rf8 {[%emt 0:00:52]} 37. f4 {[%emt 0:00:25]} gxf4 {[%emt 0:00:36]} 38. gxf4 {[%emt 0:00:20]} h5 {[%emt 0:00:20]} 39. Rg1 {[%emt 0:05:22]} Bh6 {[%emt 0:00:31]} 40. Qg3 {[%emt 0:02:44]} Qf7 {[%emt 0:00:47]} 41. Qh4 {[%emt 0:52:45]} Kh7 {[%emt 0:50:45]} 42. Nf3 {[%emt 0:00:00]} Be8 {[%emt 0:00:00]} 43. Ng5+ {[%emt 0:00:00]} Bxg5 {[%emt 0:00:00]} 44. Qxg5 {[%emt 0:00:00]} Bd7 {[%emt 0:00:00]} 45. Bd1 {[%emt 0:00:00]} Rg8 {[%emt 0:00:00]} 46. Qxg8+ {[%emt 0:00:00]} Qxg8 {[%emt 0:00:00]} 47. Rxg8 {[%emt 0:00:00]} Kxg8 {[%emt 0:00:00]} 48. Bxh5 {[%emt 0:00:00]} Kh8 {[%emt 0:00:00]} 49. Kg3 {[%emt 0:00:00]} Kg7 {[%emt 0:00:00]} 50. Kh4 {[%emt 0:00:00]} Kh6 {[%emt 0:00:00]} 51. Bf3 {[%emt 0:00:00]} Be8 {[%emt 0:00:00]} 52. Kg3 {[%emt 0:00:00]} Bd7 {[%emt 0:00:00]} 53. Bd1 {[%emt 0:00:00]} Be8 {[%emt 0:00:00]} 54. Bb3 {[%emt 0:00:00]} Bd7 {[%emt 0:00:00]} 55. Kh4 {[%emt 0:00:00]} Bc8 {[%emt 0:00:00]} 56. Bd1 {[%emt 0:00:00]} Bd7 {[%emt 0:00:00]} 57. Bh5 {[%emt 0:00:00]} Kh7 {[%emt 0:00:00]} 58. Kg5 {[%emt 0:00:00]} Kg7 {[%emt 0:00:00]} 59. Bg6 {[%emt 0:00:00]} Bc8 {[%emt 0:00:00]} 60. h4 {[%emt 0:00:00]} Bd7 {[%emt 0:00:00]} 61. h5 {[%emt 0:00:00]} Bc8 {[%emt 0:00:00]} 62. h6+ {[%emt 0:00:00]} Kg8 {[%emt 0:00:00]} 63. Kf6 {[%emt 0:00:00]} Bd7 {[%emt 0:00:00]} 64. Ke7 {[%emt 0:00:00]} Bc8 {[%emt 0:00:00]} 65. Kd8 {[%emt 0:00:00]} Bb7 {[%emt 0:00:00]} 66. Kc7 {[%emt 0:00:00]} Ba8 {[%emt 0:00:00]} 67. Kb8 {[%emt 0:00:00]} Kf8 {[%emt 0:00:00]} 68. Kxa8 {[%emt 0:00:00]} Kg8 {[%emt 0:00:00]} 69. Kb7 {[%emt 0:00:00]} Kf8 {[%emt 0:00:00]} 70. Kxc6 {[%emt 0:00:00]} Kg8 {[%emt 0:00:00]} 71. Kd7 {[%emt 0:00:00]} Kf8 {[%emt 0:00:00]} 72. c6 {[%emt 0:00:00]} Kg8 {[%emt 0:00:00]} 73. c7 {[%emt 0:00:00]} Kf8 {[%emt 0:00:00]} 74. c8=Q# {[%emt 0:00:14]} 1-0